bitfinex/quotes_ETHUSD_20260217
["timestamp","ask_amount","ask_price","bid_price","bid_amount"]
[1771339563726,2.348792,1954.6,1952.9,3.058827]
[1771339563912,3.485593,1954.7,1952.9,3.50541104]
[1771339564115,3.485593,1954.7,1953.0,0.95662504]
[1771339564303,11.460844,1954.5,1952.9,6.07714927]
[1771339564505,1.27903407,1954.6,1953.0,0.95662504]
[1771339564733,2.668593,1954.5,1953.0,0.95662504]
[1771339565026,2.668593,1954.5,1952.8,5.61382648]
[1771339565027,1.884,1954.5,1953.1,0.95662504]
[1771339565196,2.963637,1954.5,1952.9,0.95662504]
[1771339565403,1.27903407,1954.6,1953.1,3.55184907]
[1771339565604,2.7237,1955.2,1953.5,0.49302207]
[1771339565933,0.48634367,1955.2,1953.2,3.058827]
[1771339566109,0.48634367,1955.2,1953.5,7.39281336]
[1771339566110,0.963,1955.1,1953.5,7.39281336]
[1771339566466,0.59429212,1954.9,1951.4,0.49302207]
[1771339566735,6.967987,1953.8,1951.9,2.23742835]
[1771339566911,5.509387,1953.6,1952.0,0.95662504]
[1771339567110,4.591021,1953.6,1952.0,0.95662504]
[1771339567334,0.1024,1954.0,1952.2,9.95861829]
[1771339567538,3.393092,1953.9,1952.0,0.95662504]
[1771339567824,0.05,1952.7,1952.1,0.95662504]
[1771339568056,0.05,1952.6,1952.0,0.95662504]
[1771339568207,0.05,1952.6,1952.1,1.28067209]
[1771339568401,5.11902894,1953.5,1952.1,8.18046338]
[1771339568730,5.11902894,1953.5,1951.8,0.1353791]
[1771339568731,17.969231,1953.3,1951.8,0.1353791]
[1771339568949,10.318058,1953.1,1951.9,0.84662504]
[1771339569098,0.922,1953.1,1952.0,0.84662504]
[1771339569294,5.11902894,1953.5,1951.9,0.84662504]
[1771339569509,12.97220924,1953.3,1951.9,0.84662504]
[1771339569733,8.972539,1953.3,1951.9,0.84662504]
[1771339569951,0.18685624,1953.2,1951.9,0.84662504]
[1771339570102,12.003712,1953.1,1951.9,0.84662504]
[1771339570301,1.28014747,1952.9,1951.9,2.12741495]
[1771339570806,1.27962327,1953.8,1952.1,0.0011]
[1771339571128,1.886,1953.9,1952.2,3.008827]
[1771339571333,7.455105,1953.8,1952.2,0.84662504]
[1771339571520,1.886,1953.9,1952.2,0.84662504]
[1771339571834,2.195516,1953.8,1952.2,0.84662504]
[1771339572036,0.49189212,1954.1,1952.2,0.84662504]
[1771339572234,1.27949229,1953.9,1952.3,1.2805409]
[1771339572434,1.27949229,1953.9,1952.2,2.12718796]
[1771339572839,16.395014,1953.8,1952.2,0.84662504]
[1771339573063,0.28925624,1953.8,1952.2,2.12722698]
[1771339573249,6.91431,1953.6,1952.2,0.84662504]
[1771339573462,24.797734,1953.5,1952.2,0.84662504]
[1771339573748,8.967331,1953.8,1952.2,2.10057724]
[1771339573968,0.964,1953.5,1952.2,2.10057724]
[1771339574246,3.16649229,1953.9,1952.2,2.10057724]
[1771339574447,5.11849311,1953.8,1952.2,2.10057724]
[1771339574650,5.1167088,1954.4,1952.4,9.90861829]
[1771339574852,0.46796728,1954.4,1953.3,6.89979129]
[1771339575013,0.922,1954.7,1953.7,6.89979129]
[1771339575014,1.27900551,1954.7,1953.7,6.89979129]
[1771339575214,1.27900551,1954.7,1953.4,0.48712907]
[1771339575434,1.27900551,1954.7,1953.5,0.81999504]
[1771339575813,1.27857617,1955.3,1953.7,6.89979129]
[1771339576142,5.59097937,1955.7,1954.2,3.008827]
[1771339576143,1.27838003,1955.6,1954.2,3.008827]
[1771339576346,1.27805326,1956.1,1954.3,1.27923041]
[1771339576546,3.24867466,1956.0,1954.3,2.09922545]
[1771339576748,0.47667466,1955.6,1954.3,0.81999504]
[1771339577048,0.18685624,1955.3,1953.6,1.27964129]
[1771339577219,6.89979129,1954.9,1953.6,0.81999504]
[1771339577414,0.18685624,1954.8,1953.7,0.81999504]
[1771339577614,0.18685624,1954.8,1953.1,1.27996255]
[1771339577615,2.007,1954.7,1953.1,1.27996255]
[1771339577817,0.922,1954.6,1953.2,0.81999504]
[1771339578015,0.966,1954.5,1953.2,0.81999504]
[1771339578234,1.888,1954.4,1953.2,0.81999504]
[1771339578555,1.27923041,1954.3,1953.2,2.0999407]
[1771339578843,2.2011496,1954.5,1953.2,2.0999407]
[1771339579042,1.2791496,1954.5,1953.3,0.81999504]
[1771339579232,5.1162761,1954.6,1953.3,0.81999504]
[1771339579446,2.29829223,1957.4,1954.8,0.48712907]
[1771339579644,22.30742966,1957.1,1955.0,3.008827]
[1771339579856,7.61384639,1957.3,1955.1,1.845]
[1771339579857,0.47667466,1957.0,1955.1,1.845]
[1771339580152,0.7140551,1957.3,1955.4,3.008827]
[1771339580354,1.99144935,1957.2,1955.6,6.89979129]
[1771339580573,0.7140551,1957.2,1955.7,3.008827]
[1771339580926,5.10710458,1958.1,1956.0,7.38692036]
[1771339581245,5.10710458,1958.1,1955.5,1.27844541]
[1771339581246,0.47667466,1957.6,1955.5,1.27844541]
[1771339581564,0.47667466,1957.3,1955.6,2.0]
[1771339581724,0.06,1956.0,1954.6,9.84861829]
[1771339581931,0.47667466,1957.2,1955.0,6.89979129]
[1771339582243,6.89979129,1957.3,1954.7,2.948827]
[1771339582244,0.06,1955.9,1954.7,2.948827]
[1771339582445,0.7140551,1957.1,1955.8,2.948827]
[1771339582643,0.47667466,1957.6,1956.0,2.948827]
[1771339582644,0.7140551,1957.0,1956.0,2.948827]
[1771339582853,0.06,1956.9,1956.0,2.948827]
[1771339583160,0.06,1956.8,1955.9,1.846]
[1771339583456,0.7140551,1956.8,1956.1,2.948827]
[1771339583658,0.001,1955.9,1955.7,8.74579129]
[1771339583854,6.89979129,1957.6,1955.8,2.948827]
[1771339584055,3.757,1957.6,1955.8,2.948827]
[1771339584255,0.7140551,1957.5,1955.8,2.948827]
[1771339584457,0.7140551,1957.5,1956.0,2.948827]
[1771339584752,0.7140551,1957.5,1956.1,6.89979129]
[1771339584951,0.7140551,1957.5,1956.2,2.948827]
[1771339585154,1.99120255,1957.5,1955.9,1.27818395]
[1771339585356,0.922,1957.7,1956.0,2.948827]
[1771339585581,0.7140551,1957.6,1956.0,2.948827]
[1771339585731,0.7140551,1957.6,1956.1,6.89979129]
[1771339585926,0.7140551,1957.6,1956.0,2.365208]
[1771339586162,0.47667466,1957.4,1955.9,1.27818395]
[1771339586330,1.2772697,1957.3,1955.6,5.11273582]
[1771339586531,0.7140551,1957.3,1956.1,2.948827]
[1771339586961,0.7140551,1957.3,1956.3,2.948827]
[1771339587149,1.2777459,1958.2,1956.4,6.89979129]
[1771339587350,1.2777459,1958.2,1956.3,2.948827]
[1771339587351,8.629533,1958.1,1956.3,2.948827]
[1771339587541,8.629533,1958.1,1956.3,2.2957]
[1771339587745,1.27770151,1958.2,1956.3,2.2957]
[1771339588078,21.02460529,1958.0,1956.2,1.843]
[1771339588271,0.47667466,1958.1,1956.3,2.494792]
[1771339588472,1.27773178,1958.2,1956.5,2.948827]
[1771339588648,0.001,1958.2,1956.7,6.89979129]
[1771339588853,0.001,1958.2,1956.8,2.948827]
[1771339589049,0.001,1958.2,1956.5,2.948827]
[1771339589951,0.001,1958.2,1957.3,2.948827]
[1771339590274,0.001,1958.2,1957.3,0.92]
[1771339590465,0.001,1958.2,1957.4,1.27720445]
[1771339592184,0.001,1958.2,1957.6,6.89979129]
[1771339592396,0.001,1958.2,1957.4,1.27720445]
[1771339595499,0.001,1958.2,1957.3,1.27722037]
[1771339595667,0.001,1958.2,1956.7,2.19164298]
[1771339595668,0.47667466,1958.0,1956.7,2.19164298]
[1771339596258,0.001,1958.2,1956.7,2.19164298]
[1771339596461,0.001,1958.1,1956.7,2.19164298]
[1771339596786,1.75442252,1958.1,1956.7,2.19164298]
[1771339597480,0.47667466,1957.8,1956.4,1.27785728]
[1771339598199,1.27774786,1958.1,1956.5,2.948827]
[1771339598481,1.27774786,1958.1,1956.7,2.948827]
[1771339598684,0.001,1958.1,1957.3,6.89979129]
[1771339598848,0.001,1958.3,1957.7,6.89979129]
[1771339599058,0.001,1958.3,1957.5,2.948827]
[1771339599355,0.001,1958.3,1957.4,3.10920445]
[1771339600478,0.001,1958.3,1957.5,2.948827]
[1771339600679,0.001,1958.3,1957.4,1.27720445]
[1771339600880,0.001,1958.3,1957.3,5.10881781]
[1771339601198,0.001,1958.3,1957.0,2.948827]
[1771339601411,0.001,1958.3,1957.1,2.948827]
[1771339601605,0.001,1958.3,1956.9,0.909]
[1771339601920,0.001,1958.3,1957.0,2.948827]
[1771339602505,0.001,1958.3,1957.2,2.948827]
[1771339602794,0.001,1958.3,1957.5,6.89979129]
[1771339602951,0.001,1958.3,1957.6,4.776827]
[1771339603153,0.001,1958.3,1957.6,1.828]
[1771339603387,0.001,1958.3,1957.7,2.948827]
[1771339603760,0.001,1958.3,1957.7,2.010263]
[1771339603958,0.001,1958.3,1957.6,1.828]
[1771339604385,0.001,1958.3,1957.3,1.2772697]
[1771339604604,0.001,1958.3,1957.2,2.18429093]
[1771339604757,0.001,1958.3,1957.2,2.18433397]
[1771339604953,0.001,1958.3,1957.2,0.907]
[1771339605265,0.46349322,1958.1,1956.9,2.19751992]
[1771339605455,0.46349322,1958.1,1956.9,2.19752471]
[1771339605652,6.90079129,1958.3,1956.1,5.11205712]
[1771339605653,0.46349322,1957.6,1956.1,5.11205712]
[1771339605879,0.46349322,1957.6,1956.1,1.27805326]
[1771339606253,0.46349322,1957.6,1956.0,2.18506826]
[1771339606458,7.84679129,1957.9,1955.8,0.92]
[1771339606459,0.46349322,1957.2,1955.8,0.92]
[1771339606650,0.46349322,1957.0,1955.8,2.19824585]
[1771339606856,1.27753078,1956.9,1955.8,0.92]
[1771339607085,1.27753078,1956.9,1955.4,0.907]
[1771339607086,19.655252,1956.8,1955.4,0.907]
[1771339607285,0.46349322,1956.8,1955.4,2.18548847]
[1771339607501,12.084688,1956.7,1955.4,2.18548847]
[1771339607770,0.46349322,1956.8,1955.4,2.18548847]
[1771339608371,2.90463499,1956.7,1955.4,2.18548847]
[1771339608780,1.27772666,1956.6,1955.4,0.907]
[1771339608962,0.46349322,1956.5,1955.4,0.907]
[1771339609180,0.46349322,1956.3,1955.0,2.19876403]
[1771339609361,2.90411511,1956.2,1955.0,2.19876403]
[1771339609565,2.90411511,1956.1,1955.0,0.92]
[1771339609765,0.46349322,1956.3,1955.0,2.19877137]
[1771339609954,2.91091516,1956.2,1955.0,2.19877137]
[1771339610378,3.37440838,1956.2,1955.0,0.92]
[1771339610613,0.46349322,1956.0,1954.4,1.27916496]
[1771339610758,2.91091516,1955.9,1954.5,2.948827]
[1771339610972,0.46349322,1955.7,1954.2,1.27926067]
[1771339611281,1.38058395,1955.9,1954.2,1.27926067]
[1771339611282,0.46349322,1955.5,1954.2,1.27926067]
[1771339611464,0.46349322,1955.5,1955.0,0.0011]
[1771339612092,0.46349322,1955.5,1954.2,1.27926067]
[1771339612275,0.46349322,1955.5,1953.9,1.27949229]
[1771339612478,0.48939676,1955.3,1953.9,1.27949229]
[1771339612992,5.11386779,1955.5,1953.9,1.27949229]
[1771339613191,0.48939676,1955.8,1954.2,2.948827]
[1771339613367,11.02803576,1956.1,1954.2,2.948827]
[1771339613571,6.589118,1955.9,1954.2,2.948827]
[1771339613893,7.50575586,1955.8,1953.9,1.27949229]
[1771339614191,0.48939676,1955.6,1953.9,1.27949229]
[1771339614395,5.93570776,1955.5,1953.9,1.27949229]
[1771339614589,0.48939676,1955.5,1953.9,1.27949229]
[1771339614964,0.48939676,1955.3,1953.9,1.27949229]
[1771339615159,0.48939676,1955.2,1953.8,2.18351519]
[1771339615374,2.19951079,1955.4,1953.9,2.948827]
[1771339615574,0.921,1955.4,1953.9,2.948827]
[1771339615977,1.41039676,1955.4,1953.8,2.18351519]
[1771339616197,1.41039676,1955.4,1953.7,2.948827]
[1771339616198,0.48939676,1955.0,1953.7,2.948827]
[1771339616502,2.67423,1954.9,1953.6,0.0011]
[1771339616713,19.793497,1954.5,1953.6,0.0011]
[1771339616897,0.48939676,1954.3,1953.3,1.28098484]
[1771339617099,1.76864131,1954.3,1953.3,0.0011]
[1771339617418,1.27924455,1954.3,1953.3,0.0011]
[1771339617907,2.86214,1954.1,1952.6,5.12130395]
[1771339618123,1.27896863,1954.7,1953.1,6.9105616]
[1771339618308,7.847866,1954.6,1952.7,6.9105616]
[1771339618509,0.48939676,1954.3,1952.6,5.12130395]
[1771339618710,0.48939676,1954.2,1952.6,5.12130395]
[1771339618909,0.48939676,1954.2,1952.5,0.003]
[1771339619081,1.27936134,1954.1,1952.5,0.003]
[1771339619415,1.27936134,1954.1,1952.6,2.948827]
[1771339620386,1.27909951,1954.6,1953.3,6.9105616]
[1771339620810,1.27870697,1955.1,1953.4,2.948827]
[1771339620993,5.11482788,1955.5,1953.4,2.948827]
[1771339620994,2.783502,1955.6,1953.8,1.27955778]
[1771339621195,0.48939676,1955.6,1953.8,1.27955778]
[1771339621722,0.48939676,1955.6,1953.9,3.870827]
[1771339621925,0.48939676,1955.6,1954.0,2.34487]
[1771339622080,0.48939676,1955.6,1954.0,0.901]
[1771339622276,1.27831466,1955.7,1954.1,2.948827]
[1771339622479,1.27831466,1955.7,1954.2,6.9105616]
[1771339622777,1.27779197,1956.5,1954.8,2.948827]
[1771339623004,1.27779197,1956.5,1955.0,1.27877237]
[1771339624003,1.27779197,1956.5,1955.1,2.948827]
[1771339624319,1.27779197,1956.5,1955.0,1.27877237]
[1771339624690,22.2905986,1956.2,1954.8,0.922]
[1771339625029,22.2905986,1956.2,1954.0,2.17738067]
[1771339625030,8.897961,1955.4,1954.0,2.17738067]
[1771339625232,6.886315,1955.4,1954.0,2.17738067]
[1771339625536,3.324226,1955.4,1954.0,2.17738067]
[1771339625686,1.27838003,1955.6,1954.0,2.17738067]
[1771339625893,1.27838003,1955.6,1954.1,2.13878]
[1771339626390,6.9105616,1955.1,1953.6,1.27964892]
[1771339626603,2.362809,1955.5,1953.5,1.28080369]
[1771339626819,0.59179676,1955.5,1953.6,2.948827]
[1771339627012,1.27857617,1955.3,1953.7,1.27962327]
[1771339627322,1.27857617,1955.3,1953.5,1.28085336]
[1771339627323,6.52563876,1955.1,1953.5,1.28085336]
[1771339627538,9.33759,1955.0,1953.5,1.28085336]
[1771339627691,0.48939676,1955.1,1953.5,1.28085336]
[1771339627890,9.76517,1955.0,1953.5,1.28085336]
[1771339628132,0.48939676,1955.1,1953.5,1.28085336]
[1771339628820,19.02764436,1955.0,1953.5,0.0011]
[1771339629118,1.27883779,1954.9,1953.5,0.0011]
[1771339629710,7.853172,1954.8,1953.5,0.0011]
[1771339629893,4.51864,1954.7,1953.5,0.0011]
[1771339630092,2.8081,1954.7,1953.5,0.0011]
[1771339630329,1.27883779,1954.9,1953.5,0.0011]
[1771339630330,8.63209,1954.8,1953.5,0.0011]
[1771339630594,1.27883779,1954.9,1953.5,0.0011]
[1771339631101,1.27896863,1954.7,1953.5,0.0011]
[1771339631613,5.11545029,1954.9,1953.5,6.9116616]
[1771339631799,5.11545029,1954.9,1953.5,0.0011]
[1771339632003,5.60484705,1954.9,1953.5,0.0011]
[1771339632607,1.27883779,1955.3,1953.6,2.948827]
[1771339632608,5.11455674,1955.3,1953.6,2.948827]
[1771339632797,0.48939676,1955.2,1953.5,0.0011]
[1771339633228,6.494725,1955.0,1953.5,0.0011]
[1771339633402,7.314919,1954.9,1953.5,0.0011]
[1771339633597,0.936,1954.8,1953.5,0.0011]
[1771339633804,0.936,1954.8,1953.5,1.28084192]
[1771339633999,6.922147,1954.7,1953.5,0.0011]
[1771339634230,13.74847208,1954.6,1953.5,0.0011]
[1771339634430,3.60552647,1954.5,1953.5,0.0011]
[1771339634603,2.89870032,1954.4,1953.5,0.0011]
[1771339634930,3.60552647,1954.4,1953.5,0.0011]
[1771339635116,1.27929587,1954.2,1953.5,0.0011]
[1771339635316,2.91205193,1954.1,1953.5,0.0011]
[1771339636233,1.27929587,1954.2,1953.5,0.0011]
[1771339636447,2.91548204,1954.1,1953.5,0.0011]
[1771339637235,1.27942681,1954.0,1953.2,0.0011]
[1771339637720,1.27942681,1954.0,1953.3,0.0011]
[1771339637905,2.91648958,1953.9,1953.3,0.0011]
[1771339638330,1.27942681,1954.0,1953.3,0.0011]
[1771339638630,8.55210182,1954.7,1953.0,7.62630345]
[1771339638935,2.91895228,1954.6,1953.2,0.71574185]
[1771339639128,2.91895228,1954.5,1953.2,0.71574185]
[1771339639331,4.19811724,1954.4,1953.3,1.27988532]
[1771339639533,5.11625845,1954.6,1953.3,1.27988532]
[1771339639829,2.92053077,1954.5,1953.0,6.9105616]
[1771339640037,2.92053077,1954.4,1952.9,5.12049449]
[1771339640199,2.92053077,1954.3,1952.9,5.12049449]
[1771339640403,2.92053077,1954.2,1952.9,5.12049449]
[1771339640640,2.92053077,1954.1,1952.9,5.12049449]
[1771339640931,5.2567949,1954.0,1952.8,0.7381]
[1771339641134,0.70682615,1953.8,1952.5,0.003]
[1771339641433,1.853,1954.2,1952.9,6.9105616]
[1771339641434,3.43620052,1954.0,1952.9,6.9105616]
[1771339641634,3.43620052,1954.1,1952.5,6.9135616]
[1771339641819,4.14302667,1954.1,1952.5,0.003]
[1771339642025,0.70682615,1954.1,1952.5,0.003]
[1771339642222,2.56282615,1954.0,1952.5,0.003]
[1771339642427,18.15433,1953.5,1952.5,0.003]
[1771339642737,0.934,1953.4,1952.5,0.003]
[1771339642905,1.64082615,1953.4,1952.5,0.003]
[1771339643310,1.27988532,1953.3,1952.5,0.003]
[1771339643635,2.21388532,1953.3,1952.5,0.003]
[1771339643819,1.27988532,1953.3,1952.5,0.003]
[1771339644010,1.27968877,1953.6,1952.5,0.003]
[1771339644413,1.27936134,1954.1,1952.7,6.9105616]
[1771339644716,1.27934896,1954.2,1952.8,0.71574185]
[1771339644931,1.27934896,1954.2,1952.7,6.9105616]
[1771339645311,1.27934896,1954.2,1952.8,2.948827]
[1771339645505,1.27890321,1954.8,1953.1,0.71574185]
[1771339645750,1.27890321,1954.8,1953.2,9.2415616]
[1771339645907,1.27890321,1954.8,1953.1,0.71574185]
[1771339646115,1.27890321,1954.8,1953.3,0.71574185]
[1771339646327,1.27890321,1954.8,1953.4,2.948827]
[1771339646525,6.34741,1954.7,1952.9,1.99588932]
[1771339646735,0.70682615,1954.7,1952.9,1.28014747]
[1771339646910,5.850779,1954.6,1952.9,1.28014747]
[1771339647116,6.9105616,1954.6,1952.9,1.28014747]
[1771339647543,1.27909951,1954.5,1952.9,1.28014747]
[1771339647724,1.27909951,1954.5,1953.0,2.948827]
[1771339648232,1.27909951,1954.5,1953.0,2.331]
[1771339648423,1.27909951,1954.5,1952.9,1.99588932]
[1771339648618,1.27909951,1954.5,1952.9,1.28014747]
[1771339649026,1.27909951,1954.5,1953.0,2.948827]
[1771339649344,1.27909951,1954.5,1953.2,2.948827]
[1771339649551,5.11639805,1954.6,1953.3,1.27988532]
[1771339650349,0.001,1954.5,1953.3,1.27988532]
[1771339650516,0.001,1954.5,1953.5,6.9105616]
[1771339650942,0.001,1954.5,1953.7,0.71574185]
[1771339651245,0.001,1954.5,1953.5,6.9105616]
[1771339651448,0.001,1954.5,1953.3,1.27988532]
[1771339651635,0.001,1954.5,1953.0,5.12140448]
[1771339651636,0.001,1954.5,1953.0,1.28113501]
[1771339652313,0.001,1954.5,1953.0,1.28117693]
[1771339652314,0.70782615,1954.5,1953.0,1.28117693]
[1771339652513,0.70782615,1954.5,1953.0,0.0011]
[1771339652744,14.25076615,1954.4,1953.0,0.0011]
[1771339652947,0.70682615,1954.1,1953.0,0.0011]
[1771339653120,0.70682615,1953.9,1952.9,0.0011]
[1771339653314,0.70682615,1953.7,1952.7,0.0011]
[1771339653514,1.27968877,1953.6,1952.7,0.0011]
[1771339653715,0.928,1953.8,1952.7,0.0011]
[1771339653949,1.27936134,1954.1,1952.7,0.0011]
[1771339654317,1.849,1954.0,1952.7,0.0011]
[1771339654531,1.27936134,1954.1,1952.8,6.9105616]
[1771339655165,1.27936134,1954.1,1952.7,0.0011]
[1771339655372,3.12836134,1954.1,1952.7,0.0011]
[1771339655557,0.70682615,1953.9,1952.7,0.0011]
[1771339655872,0.70682615,1953.7,1952.2,1.28057259]
[1771339656166,6.9105616,1954.0,1952.1,1.28063136]
[1771339656167,0.80922615,1953.6,1952.1,1.28063136]
[1771339656387,10.942963,1953.3,1951.8,1.41619593]
[1771339656545,3.91493415,1953.8,1952.0,6.9105616]
[1771339656874,3.710865,1953.7,1952.0,2.168942]
[1771339657076,7.634345,1953.6,1951.9,2.948827]
[1771339657278,0.926,1953.9,1951.8,1.41619593]
[1771339657279,4.52792515,1953.4,1951.8,1.41619593]
[1771339657480,2.143619,1953.3,1951.8,1.41619593]
[1771339657770,1.27995084,1953.2,1951.8,1.41619593]
[1771339658335,1.848,1953.1,1951.8,1.41619593]
[1771339659065,2.55482615,1953.1,1951.8,1.41621204]
[1771339659399,0.70682615,1953.1,1951.8,1.41621204]
[1771339659605,2.24208174,1954.1,1952.0,6.9105616]
[1771339659881,3.28006,1953.6,1952.0,6.9105616]
[1771339660036,1.848,1953.5,1952.1,2.948827]
[1771339660237,1.848,1953.5,1951.9,0.71574185]
[1771339660433,5.737127,1953.4,1951.8,1.41621204]
[1771339660681,2.55482615,1953.5,1951.9,2.948827]
[1771339660974,2.55482615,1953.5,1951.8,1.41621204]
[1771339661468,0.70682615,1953.4,1951.8,1.41621204]
[1771339661650,1.27988532,1953.3,1951.9,2.948827]
[1771339662260,1.849,1953.2,1951.9,2.948827]
[1771339662463,1.849,1953.2,1951.8,1.41621204]
[1771339662973,0.70682615,1953.1,1951.8,1.41623639]
[1771339663270,1.27988532,1953.3,1951.8,1.41623639]
[1771339663439,3.294944,1953.2,1951.8,1.41623639]
[1771339663648,1.28001638,1953.1,1952.0,0.0011]
[1771339664042,7.67589168,1953.2,1952.0,0.0011]
[1771339664248,1.28001638,1953.1,1952.0,0.0011]
[1771339664448,1.14562711,1952.9,1951.7,0.0011]
[1771339664646,28.471266,1952.6,1951.1,1.28132848]
[1771339664981,28.471266,1952.6,1951.0,0.00871373]
[1771339664982,1.14562711,1952.1,1951.0,0.00871373]
[1771339665182,1.24802711,1952.4,1950.5,1.28169352]
[1771339665341,0.928,1952.0,1950.5,1.28169352]
[1771339665546,0.928,1952.0,1950.6,2.948827]
[1771339665746,1.851,1952.3,1951.0,6.9105616]
[1771339665971,1.851,1952.3,1950.8,2.948827]
[1771339666450,1.851,1952.2,1951.0,6.9105616]
[1771339667073,6.26700373,1952.8,1951.0,6.9105616]
[1771339667242,5.12137662,1952.8,1951.2,2.948827]
[1771339667443,0.928,1952.7,1951.2,2.948827]
[1771339667650,1.28021302,1952.8,1951.5,1.28106584]
[1771339668248,0.927,1952.8,1951.5,1.28106584]
[1771339668452,2.42525038,1953.7,1951.9,2.722479]
[1771339668671,2.42525038,1953.7,1952.2,6.9105616]
[1771339668672,1.85,1953.6,1952.2,6.9105616]
[1771339668873,1.85,1953.5,1952.0,4.11919658]
[1771339669077,1.85,1953.5,1952.3,6.9105616]
[1771339669259,1.27960993,1953.8,1952.3,6.9105616]
[1771339669260,1.27958726,1953.8,1952.3,6.9105616]
[1771339669461,1.85,1953.7,1952.3,6.9105616]
[1771339669667,3.1296329,1953.7,1952.4,1.28047531]
[1771339669982,1.27962568,1953.7,1952.4,1.28047531]
[1771339670184,0.001,1954.0,1952.8,8.10115002]
[1771339670372,0.001,1954.0,1953.2,6.93078044]
[1771339670553,0.0074931,1953.8,1953.2,6.93078044]
[1771339670751,0.001,1954.0,1953.3,2.948827]
[1771339670975,0.001,1954.0,1952.9,1.17036958]
[1771339671565,0.001,1954.0,1953.0,2.251747]
[1771339671787,0.001,1954.5,1953.5,6.93078044]
[1771339672286,0.001,1954.5,1953.6,2.948827]
[1771339672786,1.27857617,1955.3,1954.0,2.948827]
[1771339672959,1.848,1955.2,1954.0,2.948827]
[1771339673487,1.27857617,1955.3,1954.0,2.948827]
[1771339673688,1.848,1955.1,1954.0,2.948827]
[1771339673886,5.11378164,1955.7,1954.1,1.27936134]
[1771339674257,3.374,1955.6,1954.1,1.27936134]
[1771339674994,1.29282466,1955.2,1953.2,8.21073128]
[1771339675176,7.445503,1955.3,1953.2,1.27995084]
[1771339675177,6.197395,1954.9,1953.2,1.27995084]
[1771339675381,2.851749,1954.7,1953.2,1.27995084]
[1771339675570,1.29282466,1954.5,1952.7,5.12109646]
[1771339675770,1.27929587,1954.2,1952.3,1.2805409]
[1771339675970,1.29282466,1954.0,1952.3,1.2805409]
[1771339676171,1.29282466,1954.0,1952.4,0.0011]
[1771339676387,3.373,1953.9,1952.4,0.0011]
[1771339676587,1.846,1953.8,1952.4,0.0011]
[1771339677287,3.348232,1953.7,1952.4,0.0011]
[1771339677493,3.203358,1953.7,1952.4,0.0011]
[1771339677704,1.29282466,1953.6,1952.4,0.0011]
[1771339677856,1.27975428,1953.5,1952.4,0.0011]
[1771339678056,1.845,1953.4,1952.4,0.0011]
[1771339678458,1.29282466,1953.8,1952.4,0.0011]
[1771339678884,1.27949229,1953.9,1952.5,6.93078044]
[1771339679086,1.844,1953.8,1952.5,6.93078044]
[1771339679296,1.844,1953.8,1952.6,2.948827]
[1771339679297,0.922,1953.7,1952.6,2.948827]
[1771339679478,1.845,1954.5,1953.4,2.948827]
[1771339679663,1.845,1954.5,1953.4,2.419395]
[1771339679864,1.845,1954.5,1953.5,1.27975428]
[1771339680060,5.11509927,1955.0,1953.5,1.27975428]
[1771339680304,0.001,1955.1,1953.7,6.93078044]
[1771339680473,0.001,1955.1,1953.8,2.948827]
[1771339680680,2.20156466,1955.4,1953.5,1.27975428]
[1771339680681,0.922,1955.8,1954.2,3.77694853]
[1771339680877,0.922,1955.8,1954.2,2.948827]
[1771339681073,1.2781186,1956.0,1954.2,4.21792553]
[1771339681298,1.846,1955.9,1954.2,1.26909853]
[1771339681466,1.846,1955.9,1954.3,2.752322]
[1771339681665,0.001,1956.1,1954.3,4.21792553]
[1771339681968,0.001,1956.4,1955.5,2.948827]
[1771339682318,2.20140376,1957.1,1955.9,6.93078044]
[1771339682607,1.53225417,1957.9,1955.9,6.93078044]
[1771339682608,0.001,1958.1,1956.9,4.21792553]
[1771339682824,0.001,1958.1,1957.7,2.948827]
[1771339683036,7.93268733,1959.7,1958.1,2.948827]
[1771339683037,0.922,1959.5,1958.1,2.948827]
[1771339683163,0.922,1959.5,1957.9,6.93078044]
[1771339683366,0.922,1959.5,1957.8,2.660074]
[1771339683568,8.804904,1959.4,1957.7,6.92253496]
[1771339683806,4.697387,1959.4,1957.5,2.948827]
[1771339683974,3.831584,1959.2,1957.5,2.948827]
[1771339684180,5.12440866,1959.2,1957.3,2.948827]
[1771339684381,20.60269244,1959.0,1957.2,2.948827]
[1771339684597,6.93078044,1959.0,1957.2,2.948827]
[1771339684919,1.849,1958.9,1957.2,2.948827]
[1771339685079,1.849,1958.8,1957.2,2.948827]
[1771339685487,1.849,1958.8,1956.2,5.11138222]
[1771339685488,6.93078044,1958.2,1955.9,6.93078044]
[1771339685743,8.2236051,1957.8,1955.8,1.2782493]
[1771339685917,8.2236051,1957.8,1955.7,1.27831466]
[1771339685918,10.755756,1957.5,1955.7,1.27831466]
[1771339686216,9.99378044,1957.4,1955.6,1.27833372]
[1771339686371,1.29282466,1957.3,1955.3,2.948827]
[1771339686588,3.004248,1957.2,1955.3,2.2095]
[1771339686774,1.29282466,1957.3,1955.2,1.27864157]
[1771339687083,10.11665544,1957.1,1955.3,2.948827]
[1771339687307,2.488247,1957.0,1955.3,2.427718]
[1771339687471,1.27707396,1957.6,1956.0,6.93078044]
[1771339687804,1.848,1957.5,1955.7,2.948827]
[1771339688110,1.848,1957.5,1955.8,1.2782493]
[1771339688320,1.536,1958.1,1955.8,1.2782493]
[1771339688321,1.27674786,1958.1,1956.4,6.93078044]
[1771339688470,1.847,1957.7,1956.4,6.93078044]
[1771339688669,1.847,1957.7,1956.0,6.93078044]
[1771339688971,1.847,1957.7,1956.1,2.948827]
[1771339689278,1.847,1957.7,1956.1,2.44085]
[1771339689603,1.847,1957.7,1956.0,9.87960744]
[1771339689771,1.847,1957.7,1956.1,2.948827]
[1771339689976,1.847,1957.8,1956.5,2.948827]
[1771339690569,0.921,1957.7,1956.5,2.948827]
[1771339690770,1.846,1957.7,1956.4,2.948827]
[1771339691190,1.846,1957.7,1956.2,1.27798793]
[1771339691600,1.27673106,1958.2,1956.7,6.93078044]
[1771339691767,1.845,1957.9,1956.7,6.93078044]
[1771339691995,1.845,1957.9,1956.9,1.27753078]
[1771339692195,1.845,1957.8,1956.2,9.87960744]